Workbook

Sheet 1. Forside
A1: Lolland Vand A/S
D8: Bilag A
D13: Indholdsfortegnelse
C16: Fane nr. 2 | D16: Samlet prisloft
C17: Fane nr. 3 | D17: Driftsomkostninger
C18: Fane nr. 4 | D18: Historiske investeringer
C19: Fane nr. 5 | D19: Gennemførte investeringer
C20: Fane nr. 6 | D20: Korrektion investeringer
C21: Fane nr. 7 | D21: Planlagte investeringer
C22: Fane nr. 8 | D22: 1:1 omkostninger
C23: Fane nr. 9 | D23: Miljø- og servicemål
C24: Fane nr. 10 | D24: Nettofinansielle poster
C25: Fane nr. 11 | D25: Over- eller underdækning
C26: Fane nr. 12 | D26: Kontrol med indtægtsrammen og oversigt over ekstraordinære effektiviseringsgevinster

Sheet 2. Samlet prisloft
A1: ='1. Forside'!A1 -> Lolland Vand A/S
B4: Fane 2. Samlet prisloft for 2015
B6: Driftsomkostninger
B7: Driftsomkostninger i prisloftet for 2014 | C7: ='3. Driftsomkostninger'!C20 -> 16887220.66 | D7: kr.
B8: Bortfald af væsentlige omkostninger | C8: =-'3. Driftsomkostninger'!C16 -> 0 | D8: kr.
B9: Korrektion for prisudviklingen 2014-2015 | C9: ='3. Driftsomkostninger'!C22 -> 13509.77653 | D9: kr.
B10: Forhøjelse til effektivt niveau iht. benchmarkingen | C10: ='3. Driftsomkostninger'!C28 -> 0 | D10: kr.
B11: Korrektion for generelt effektiviseringskrav | C11: =-'3. Driftsomkostninger'!C34 -> -74303.77093 | D11: kr.
B12: Korrektion for individuelt effektiviseringskrav | C12: =-'3. Driftsomkostninger'!C43 -> -844361.0332 | D12: kr.
B13: Driftsomkostninger i alt | C13: =SUM(C7:C12) -> 15982065.64 | D13: kr. | E13: =C13 -> 15982065.64 | F13: kr.
B14: Investeringer
B15: Tillæg for historiske investeringer | C15: ='4. Historiske investeringer'!C9 -> 13221420.62 | D15: kr.
B16: Tillæg for gennemførte investeringer i 2011-2013 | C16: ='5. Gennemførte investeringer'!F131 -> 4453415.958 | D16: kr.
B17: Korrektion af tillæg for planlagte investeringer vedrørende 2013 | C17: ='6. Korrektion investeringer'!C10 -> 296650.2633 | D17: kr.
B18: Tillæg for planlagte investeringer i 2014 og 2015 | C18: ='7. Planlagte investeringer'!F51 -> 1333806.667 | D18: kr.
B19: Investeringstillæg i alt | C19: =SUM(C15:C18) -> 19305293.51 | D19: kr. | E19: =C19 -> 19305293.51 | F19: kr.
B20: Øvrige omkostninger mv.
B21: Tillæg for 1:1 omkostninger i 2015 | C21: ='8. 1-1 omkostninger'!C9 -> 68000 | D21: kr.
B22: Tillæg for afgift for ledningsført vand i 2015 | C22: ='8. 1-1 omkostninger'!C14 -> 10000000 | D22: kr.
B23: Tillæg vedr. revisorerklæringer og DANVA/FVD-kontingent | C23: ='8. 1-1 omkostninger'!C20 -> 103000 | D23: kr.
B24: Korrektion ift. faktiske 1:1 omkostninger i 2013 | C24: ='8. 1-1 omkostninger'!C26 -> -683407 | D24: kr.
B25: Tillæg for driftsomkostninger til miljø- og servicemål i 2015 | C25: ='9. Miljø- og servicemål'!C8 -> 55000 | D25: kr.
B26: Korrektion ift. faktiske driftsomkostninger til miljø- og servicemål i 2013 | C26: ='9. Miljø- og servicemål'!C15 -> 25991 | D26: kr.
B27: Tillæg/fradrag for nettofinansielle poster i 2015 | C27: ='10. Nettofinansielle poster'!C9 -> 2895000 | D27: kr.
B28: Korrektion ift. faktiske nettofinansielle poster i 2013 | C28: ='10. Nettofinansielle poster'!C16 -> 466127 | D28: kr.
B29: Øvrige omkostninger mv. i alt | C29: =SUM(C21:C28) -> 12929711 | D29: kr. | E29: =C29 -> 12929711 | F29: kr.
B30: Historisk over- eller underdækning
B31: Tillæg/fradrag for over- eller underdækning til og med 2010 | C31: ='11. Over- eller underdækning'!C11 -> 302561.8757 | D31: kr. | E31: =C31 -> 302561.8757 | F31: kr.
B32: Korrektion i forhold til tidligere indtægtsramme
B33: Korrektion for overholdelse af indtægtsramme i prisloft 2013 | C33: ='12. Kontrol med indtægtsrammen'!E27 -> 5955031.073 | D33: kr. | E33: =C33 -> 5955031.073 | F33: kr.
B34: Samlet prisloft
B35: Indtægtsramme i 2015 | E35: =SUM(E13:E33) -> 54474663.09 | F35: kr.
B36: Debiteret vandmængde i 2013 | E36: 1673529 | F36: m3
B37: Prisloft 2015 | E37: =E35/E36 -> 32.5507733 | F37: kr./m3
B38: Prisloft 2015 ekskl. afgift for ledningsført vand | E38: =(E35-C22)/E36 -> 26.5753764 | F38: kr./m3

Sheet 3. Driftsomkostninger
A1: ='1. Forside'!A1 -> Lolland Vand A/S
B4: Fane 3. Driftsomkostninger
B6: Driftsomkostningerne i prisloftet for 2014
B7: Korrigerede driftsomkostninger i prisloftet for 2013 (DOiPL 2013) | C7: 17499711 | D7: kr.
B8: Prisfremskrivning 1,5 pct. | C8: =0.015*SUM(C7:C7) -> 262495.665 | D8: kr.
B9: Generelt effektiviseringskrav (0 pct.) | C9: 0 | D9: kr.
B10: Individuelt effektiviseringskrav | C10: -874986 | D10: kr.
B11: Driftsomkostningerne i prisloftet for 2014 (DOiPL 2014) | C11: =SUM(C7:C10) -> 16887220.66 | D11: kr.
B14: Korrektion for forventet bortfald af væsentlige omkostninger
B15: Selskabets indberettede bortfald af væsentlige omkostninger inden 2015 | C15: 0 | D15: kr.
B16: Korrektion for forventet bortfald | C16: =SUM(C15:C15) -> 0 | D16: kr.
B19: Korrektion for prisudviklingen fra 2014-2015
B20: Driftsomkostningerne i prisloftet for 2014 | C20: =C11-C16 -> 16887220.66 | D20: kr.
B21: Prisudvikling 2014 - 2015 | C21: 0.08 | D21: pct.
B22: Korrektion for prisudvikling | C22: =C20*(C21/100) -> 13509.77653 | D22: kr.
B25: Eventuel forhøjelse til effektivt niveau iht. benchmarkingen
B26: Selskabets effektive driftsomkostninger iht. benchmarkingen | C26: 8377750 | D26: kr.
B27: Selskabets pristalskorrigerede driftsomkostninger i 2015-niveau | C27: =C20+C22 -> 16900730.44 | D27: kr.
B28: Eventuel forhøjelse til effektivt niveau | C28: =IF(C27>C26,0,C26-C27) -> 0 | D28: kr.
B31: Korrektion for generelt effektiviseringskrav
B32: Driftsomkostningerne i prisloftet for 2014 | C32: =C20 -> 16887220.66 | D32: kr.
B33: Generelt effektiviseringskrav | C33: 0.44 | D33: pct.
B34: Endeligt generelt effektiviseringskrav | C34: =C32*(C33/100) -> 74303.77093 | D34: kr.
B37: Korrektion for individuelt effektiviseringskrav
B38: Rå effektiviseringspotentiale | C38: 8509471 | D38: kr.
B39: Effektiviseringspotentiale efter eventuel korrektion for særlige forhold | C39: 8509471 | D39: kr.
B40: Effektiviseringspotentiale efter forsigtighedshensyn | C40: 5881819 | D40: kr.
B41: Effektiviseringspotentiale efter eventuel korrektion for sammensætning af signifikante costdrivere | C41: 5881819 | D41: kr.
B42: Umiddelbart effektiviseringskrav | C42: =C41/4 -> 1470454.75 | D42: kr.
B43: Endeligt individuelt effektiviseringskrav | C43: =IF(C42>0.05*C20,0.05*C20,IF(C42<0.01*C20,0,C42)) -> 844361.0332 | D43: kr.

Sheet 4. Historiske investeringer
A1: ='3. Driftsomkostninger'!A1 -> Lolland Vand A/S
B4: Fane 4. Historiske investeringer
B6: Tillæg for historiske investeringer
B7: Værdi af selskabets materielle anlægsaktiver pr. 1. januar 2010 | C7: 522510347.7 | D7: kr.
B8: Den årlige standardafskrivning på de materielle anlægsaktiver iht. POLKA | C8: 13221420.62 | D8: kr.
B9: Tillæg i alt i 2015 | C9: =C8 -> 13221420.62 | D9: kr.

Sheet 5. Gennemførte investeringer
A1: ='4. Historiske investeringer'!A1 -> Lolland Vand A/S
B4: Fane 5. Gennemførte investeringer i 2010 - 2013
B6: Tillæg for gennemførte investeringer i 2013
B7: Beskrivelse af investeringen | C7: Årstal | D7: Std. levetid (år) | E7: Anskaffelses-pris (kr.) | F7: Afskrivning
B8: Ledningsnet = Ø50 mm | C8: 2013 | D8: 75 | E8: 630909 | F8: =E8/D8 -> 8412.12 | G8: kr.
B9: Ø 50mm < Ledningsnet = Ø110 mm | C9: 2013 | D9: 75 | E9: 1025238 | F9: 13669.84 | G9: kr.
B10: Ø110 mm < Ledningsnet = Ø 250 mm | C10: 2013 | D10: 75 | E10: 927378 | F10: 12365.04 | G10: kr.
B11: Stik på ledningsnet, Konstruktioner | C11: 2013 | D11: 75 | E11: 753656 | F11: 10048.74667 | G11: kr.
B12: Stik på ledningsnet, Mek./EL | C12: 2013 | D12: 75 | E12: 753656 | F12: 10048.74667 | G12: kr.
B13: Ventiler på ledningsnet = Ø50 mm | C13: 2013 | D13: 75 | E13: 1028463 | F13: =E13/D13 -> 13712.84 | G13: kr.
B14: Ventiler på Ø 50mm < Ledningsnet = Ø110 mm | C14: 2013 | D14: 75 | E14: 60735 | F14: 809.8 | G14: kr.
B15: Ventiler på Ø110 mm < Ledningsnet = Ø 250 mm | C15: 2013 | D15: 75 | E15: 98006 | F15: 1306.746667 | G15: kr.
B16: Ledningsnet = Ø50 mm | C16: 2013 | D16: 75 | E16: 273630 | F16: 3648.4 | G16: kr.
B17: Ø 50mm < Ledningsnet = Ø110 mm | C17: 2013 | D17: 75 | E17: 662647 | F17: 8835.293333 | G17: kr.
B18: Ø110 mm < Ledningsnet = Ø 250 mm | C18: 2013 | D18: 75 | E18: 240377 | F18: 3205.026667 | G18: kr.
B19: Stik på ledningsnet, Konstruktioner | C19: 2013 | D19: 75 | E19: 455429 | F19: 6072.386667 | G19: kr.
B20: Stik på ledningsnet, Mek./EL | C20: 2013 | D20: 75 | E20: 455429 | F20: 6072.386667 | G20: kr.
B21: Ventiler på ledningsnet = Ø50 mm | C21: 2013 | D21: 75 | E21: 605692 | F21: 8075.893333 | G21: kr.
B22: Ventiler på Ø 50mm < Ledningsnet = Ø110 mm | C22: 2013 | D22: 75 | E22: 61170 | F22: 815.6 | G22: kr.
B23: Ventiler på Ø110 mm < Ledningsnet = Ø 250 mm | C23: 2013 | D23: 75 | E23: 14806 | F23: 197.4133333 | G23: kr.
B24: Ø110 mm < Ledningsnet = Ø 250 mm | C24: 2013 | D24: 75 | E24: 1371407 | F24: 18285.42667 | G24: kr.
B25: Ø 250 mm < Ledningsnet = Ø 500mm | C25: 2013 | D25: 75 | E25: 824 | F25: 10.98666667 | G25: kr.
B26: SRO-brønd/kvarterbrønd/sektionsbrønd, Konstruktioner | C26: 2013 | D26: 50 | E26: 40126 | F26: 802.52 | G26: kr.
B27: SRO-brønd/kvarterbrønd/sektionsbrønd, Mek./EL | C27: 2013 | D27: 15 | E27: 45858 | F27: 3057.2 | G27: kr.
B28: SRO-brønd/kvarterbrønd/sektionsbrønd, SRO | C28: 2013 | D28: 10 | E28: 28662 | F28: 2866.2 | G28: kr.
B29: Ledningsnet = Ø50 mm | C29: 2013 | D29: 75 | E29: 151174 | F29: 2015.653333 | G29: kr.
B30: Ø 50mm < Ledningsnet = Ø110 mm | C30: 2013 | D30: 75 | E30: 782484 | F30: 10433.12 | G30: kr.
B31: Stik på ledningsnet, Konstruktioner | C31: 2013 | D31: 75 | E31: 111832 | F31: 1491.093333 | G31: kr.
B32: Stik på ledningsnet, Mek./EL | C32: 2013 | D32: 75 | E32: 111832 | F32: 1491.093333 | G32: kr.
B33: Ventiler på ledningsnet = Ø50 mm | C33: 2013 | D33: 75 | E33: 183119 | F33: 2441.586667 | G33: kr.
B34: Ventiler på Ø 50mm < Ledningsnet = Ø110 mm | C34: 2013 | D34: 75 | E34: 12510 | F34: 166.8 | G34: kr.
B35: Ledningsnet = Ø50 mm | C35: 2013 | D35: 75 | E35: 42870 | F35: 571.6 | G35: kr.
B36: Ø 50mm < Ledningsnet = Ø110 mm | C36: 2013 | D36: 75 | E36: 28164 | F36: 375.52 | G36: kr.
B37: Stik på ledningsnet, Konstruktioner | C37: 2013 | D37: 75 | E37: 104452 | F37: 1392.693333 | G37: kr.
B38: Stik på ledningsnet, Mek./EL | C38: 2013 | D38: 75 | E38: 104452 | F38: 1392.693333 | G38: kr.
B39: Ventiler på ledningsnet = Ø50 mm | C39: 2013 | D39: 75 | E39: 134154 | F39: 1788.72 | G39: kr.
B40: Ventiler på Ø 50mm < Ledningsnet = Ø110 mm | C40: 2013 | D40: 75 | E40: 9738 | F40: 129.84 | G40: kr.
B41: Ø 50mm < Ledningsnet = Ø110 mm | C41: 2013 | D41: 75 | E41: 16408 | F41: 218.7733333 | G41: kr.
B42: Ventiler på ledningsnet = Ø50 mm | C42: 2013 | D42: 75 | E42: 150897 | F42: 2011.96 | G42: kr.
B43: Ventiler på Ø 50mm < Ledningsnet = Ø110 mm | C43: 2013 | D43: 75 | E43: 87626 | F43: 1168.346667 | G43: kr.
B44: Ledningsnet = Ø50 mm | C44: 2013 | D44: 75 | E44: 20008 | F44: 266.7733333 | G44: kr.
B45: Ø 50mm < Ledningsnet = Ø110 mm | C45: 2013 | D45: 75 | E45: 4024 | F45: 53.65333333 | G45: kr.
B46: Stik på ledningsnet, Konstruktioner | C46: 2013 | D46: 75 | E46: 19434 | F46: 259.12 | G46: kr.
B47: Stik på ledningsnet, Mek./EL | C47: 2013 | D47: 75 | E47: 19434 | F47: 259.12 | G47: kr.
B48: Ventiler på ledningsnet = Ø50 mm | C48: 2013 | D48: 75 | E48: 31822 | F48: 424.2933333 | G48: kr.
B49: Ø 50mm < Ledningsnet = Ø110 mm | C49: 2013 | D49: 75 | E49: 456765 | F49: 6090.2 | G49: kr.
B50: Stik på ledningsnet, Konstruktioner | C50: 2013 | D50: 75 | E50: 137839 | F50: 1837.853333 | G50: kr.
B51: Stik på ledningsnet, Mek./EL | C51: 2013 | D51: 75 | E51: 137839 | F51: 1837.853333 | G51: kr.
B52: Ventiler på ledningsnet = Ø50 mm | C52: 2013 | D52: 75 | E52: 181132 | F52: 2415.093333 | G52: kr.
B53: Ventiler på Ø 50mm < Ledningsnet = Ø110 mm | C53: 2013 | D53: 75 | E53: 48546 | F53: 647.28 | G53: kr.
B54: Køretøjer, små lastvogne (< 3.500 kg.) | C54: 2013 | D54: 5 | E54: 606374 | F54: 121274.8 | G54: kr.
B55: Arbejdsplads | C55: 2013 | D55: 5 | E55: 9932 | F55: 1986.4 | G55: kr.
B56: Arbejdsplads | C56: 2013 | D56: 5 | E56: 81885 | F56: 16377 | G56: kr.
B57: Sikring, avanceret (hegne, porte og overvågningssystemer), SRO | C57: 2013 | D57: 10 | E57: 105460 | F57: 10546 | G57: kr.
B58: Lager | C58: 2013 | D58: 75 | E58: 1635893 | F58: 21811.90667 | G58: kr.
B59: Afregningsmålere, mekaniske | C59: 2013 | D59: 8 | E59: 2303413 | F59: 287926.625 | G59: kr.
B60: Ø 50mm < Ledningsnet = Ø110 mm | C60: 2013 | D60: 75 | E60: 154903 | F60: 2065.373333 | G60: kr.
B61: Boring (inkl. etablering, forerør, filter og prøvepumpning) | C61: 2013 | D61: 30 | E61: 1233586 | F61: 41119.53333 | G61: kr.
B62: Ø110 mm < Ledningsnet = Ø 250 mm | C62: 2013 | D62: 75 | E62: 151165 | F62: 2015.533333 | G62: kr.
B63: SRO anlæg | C63: 2013 | D63: 10 | E63: 431608 | F63: 43160.8 | G63: kr.
B64: Ledningsnet = Ø50 mm | C64: 2013 | D64: 75 | E64: 86982 | F64: 1159.76 | G64: kr.
B65: Ø 50mm < Ledningsnet = Ø110 mm | C65: 2013 | D65: 75 | E65: 56785 | F65: 757.1333333 | G65: kr.
B66: Ø110 mm < Ledningsnet = Ø 250 mm | C66: 2013 | D66: 75 | E66: 475371 | F66: 6338.28 | G66: kr.
B67: Stik på ledningsnet, Konstruktioner | C67: 2013 | D67: 75 | E67: 116817 | F67: 1557.56 | G67: kr.
B68: Stik på ledningsnet, Mek./EL | C68: 2013 | D68: 75 | E68: 116817 | F68: 1557.56 | G68: kr.
B69: Ventiler på ledningsnet = Ø50 mm | C69: 2013 | D69: 75 | E69: 129522 | F69: 1726.96 | G69: kr.
B70: Ventiler på Ø 50mm < Ledningsnet = Ø110 mm | C70: 2013 | D70: 75 | E70: 23143 | F70: 308.5733333 | G70: kr.
B71: Ventiler på Ø110 mm < Ledningsnet = Ø 250 mm | C71: 2013 | D71: 75 | E71: 140042 | F71: 1867.226667 | G71: kr.
B72: Ø 50mm < Ledningsnet = Ø110 mm | C72: 2013 | D72: 75 | E72: 86659 | F72: 1155.453333 | G72: kr.
B73: Ø110 mm < Ledningsnet = Ø 250 mm | C73: 2013 | D73: 75 | E73: 386808 | F73: 5157.44 | G73: kr.
B74: Stik på ledningsnet, Konstruktioner | C74: 2013 | D74: 75 | E74: 31632 | F74: 421.76 | G74: kr.
B75: Stik på ledningsnet, Mek./EL | C75: 2013 | D75: 75 | E75: 31632 | F75: 421.76 | G75: kr.
B76: Ventiler på ledningsnet = Ø50 mm | C76: 2013 | D76: 75 | E76: 31077 | F76: 414.36 | G76: kr.
B77: Ventiler på Ø 50mm < Ledningsnet = Ø110 mm | C77: 2013 | D77: 75 | E77: 156406 | F77: 2085.413333 | G77: kr.
B78: Ventiler på Ø110 mm < Ledningsnet = Ø 250 mm | C78: 2013 | D78: 75 | E78: 465943 | F78: 6212.573333 | G78: kr.
B79: SRO-brønd/kvarterbrønd/sektionsbrønd, Konstruktioner | C79: 2013 | D79: 50 | E79: 950713 | F79: 19014.26 | G79: kr.
B80: SRO-brønd/kvarterbrønd/sektionsbrønd, Mek./EL | C80: 2013 | D80: 15 | E80: 1086522 | F80: 72434.8 | G80: kr.
B81: SRO-brønd/kvarterbrønd/sektionsbrønd, SRO | C81: 2013 | D81: 10 | E81: 679083 | F81: 67908.3 | G81: kr.
B82: Ledningsnet = Ø50 mm | C82: 2013 | D82: 75 | E82: 8143 | F82: 108.5733333 | G82: kr.
B83: Ø 50mm < Ledningsnet = Ø110 mm | C83: 2013 | D83: 75 | E83: 78838 | F83: 1051.173333 | G83: kr.
B84: Stik på ledningsnet, Konstruktioner | C84: 2013 | D84: 75 | E84: 16023 | F84: 213.64 | G84: kr.
B85: Stik på ledningsnet, Mek./EL | C85: 2013 | D85: 75 | E85: 16023 | F85: 213.64 | G85: kr.
B86: Ventiler på ledningsnet = Ø50 mm | C86: 2013 | D86: 75 | E86: 21866 | F86: 291.5466667 | G86: kr.
B87: Ledningsnet = Ø50 mm | C87: 2013 | D87: 75 | E87: 83108 | F87: =E87/D87 -> 1108.106667 | G87: kr.
B88: Ø 50mm < Ledningsnet = Ø110 mm | C88: 2013 | D88: 75 | E88: 280590 | F88: 3741.2 | G88: kr.
B89: Stik på ledningsnet, Konstruktioner | C89: 2013 | D89: 75 | E89: 104504 | F89: 1393.386667 | G89: kr.
B90: Stik på ledningsnet, Mek./EL | C90: 2013 | D90: 75 | E90: 104504 | F90: 1393.386667 | G90: kr.
B91: Ventiler på ledningsnet = Ø50 mm | C91: 2013 | D91: 75 | E91: 126764 | F91: 1690.186667 | G91: kr.
B92: Ventiler på Ø 50mm < Ledningsnet = Ø110 mm | C92: 2013 | D92: 75 | E92: 18403 | F92: 245.3733333 | G92: kr.
B93: Ledningsnet = Ø50 mm | C93: 2013 | D93: 75 | E93: 229273 | F93: 3056.973333 | G93: kr.
B94: Ø 50mm < Ledningsnet = Ø110 mm | C94: 2013 | D94: 75 | E94: 514346 | F94: 6857.946667 | G94: kr.
B95: Ø110 mm < Ledningsnet = Ø 250 mm | C95: 2013 | D95: 75 | E95: 13952 | F95: 186.0266667 | G95: kr.
B96: Stik på ledningsnet, Konstruktioner | C96: 2013 | D96: 75 | E96: 185449 | F96: 2472.653333 | G96: kr.
B97: Stik på ledningsnet, Mek./EL | C97: 2013 | D97: 75 | E97: 185449 | F97: 2472.653333 | G97: kr.
B98: Ventiler på ledningsnet = Ø50 mm | C98: 2013 | D98: 75 | E98: 253069 | F98: 3374.253333 | G98: kr.
B99: Ventiler på Ø 50mm < Ledningsnet = Ø110 mm | C99: 2013 | D99: 75 | E99: 18370 | F99: 244.9333333 | G99: kr.
B100: Ledningsnet = Ø50 mm | C100: 2013 | D100: 75 | E100: 200661 | F100: 2675.48 | G100: kr.
B101: Ø 50mm < Ledningsnet = Ø110 mm | C101: 2013 | D101: 75 | E101: 305224 | F101: 4069.653333 | G101: kr.
B102: Ø110 mm < Ledningsnet = Ø 250 mm | C102: 2013 | D102: 75 | E102: 67625 | F102: 901.6666667 | G102: kr.
B103: Stik på ledningsnet, Konstruktioner | C103: 2013 | D103: 75 | E103: 219955 | F103: 2932.733333 | G103: kr.
B104: Stik på ledningsnet, Mek./EL | C104: 2013 | D104: 75 | E104: 219955 | F104: 2932.733333 | G104: kr.
B105: Ventiler på ledningsnet = Ø50 mm | C105: 2013 | D105: 75 | E105: 325462 | F105: 4339.493333 | G105: kr.
B106: Ventiler på Ø 50mm < Ledningsnet = Ø110 mm | C106: 2013 | D106: 75 | E106: 75599 | F106: 1007.986667 | G106: kr.
B107: Ventiler på Ø110 mm < Ledningsnet = Ø 250 mm | C107: 2013 | D107: 75 | E107: 121991 | F107: 1626.546667 | G107: kr.
B108: Ventiler på Ø 250 mm < Ledningsnet = Ø 500mm | C108: 2013 | D108: 75 | E108: 219722 | F108: 2929.626667 | G108: kr.
B109: Ledningsnet = Ø50 mm | C109: 2013 | D109: 75 | E109: 92872 | F109: 1238.293333 | G109: kr.
B110: Ø 50mm < Ledningsnet = Ø110 mm | C110: 2013 | D110: 75 | E110: 54687 | F110: 729.16 | G110: kr.
B111: Stik på ledningsnet, Konstruktioner | C111: 2013 | D111: 75 | E111: 156369 | F111: 2084.92 | G111: kr.
B112: Stik på ledningsnet, Mek./EL | C112: 2013 | D112: 75 | E112: 156369 | F112: 2084.92 | G112: kr.
B113: Ventiler på ledningsnet = Ø50 mm | C113: 2013 | D113: 75 | E113: 613932 | F113: 8185.76 | G113: kr.
B114: Ventiler på Ø 50mm < Ledningsnet = Ø110 mm | C114: 2013 | D114: 75 | E114: 17391 | F114: 231.88 | G114: kr.
B115: Ledningsnet = Ø50 mm | C115: 2013 | D115: 75 | E115: 26689 | F115: 355.8533333 | G115: kr.
B116: Ø 50mm < Ledningsnet = Ø110 mm | C116: 2013 | D116: 75 | E116: 29389 | F116: 391.8533333 | G116: kr.
B117: Stik på ledningsnet, Konstruktioner | C117: 2013 | D117: 75 | E117: 41666 | F117: 555.5466667 | G117: kr.
B118: Stik på ledningsnet, Mek./EL | C118: 2013 | D118: 75 | E118: 41666 | F118: 555.5466667 | G118: kr.
B119: Ventiler på ledningsnet = Ø50 mm | C119: 2013 | D119: 75 | E119: 51689 | F119: 689.1866667 | G119: kr.
B120: Ventiler på Ø 50mm < Ledningsnet = Ø110 mm | C120: 2013 | D120: 75 | E120: 6003 | F120: 80.04 | G120: kr.
B121: Ledningsnet = Ø50 mm | C121: 2013 | D121: 75 | E121: 34762 | F121: 463.4933333 | G121: kr.
B122: Ø 50mm < Ledningsnet = Ø110 mm | C122: 2013 | D122: 75 | E122: 35568 | F122: 474.24 | G122: kr.
B123: Ø110 mm < Ledningsnet = Ø 250 mm | C123: 2013 | D123: 75 | E123: 1157579 | F123: 15434.38667 | G123: kr.
B124: Stik på ledningsnet, Konstruktioner | C124: 2013 | D124: 75 | E124: 52822 | F124: 704.2933333 | G124: kr.
B125: Stik på ledningsnet, Mek./EL | C125: 2013 | D125: 75 | E125: 52822 | F125: 704.2933333 | G125: kr.
B126: Ventiler på ledningsnet = Ø50 mm | C126: 2013 | D126: 75 | E126: 54061 | F126: 720.8133333 | G126: kr.
B127: Ventiler på Ø 50mm < Ledningsnet = Ø110 mm | C127: 2013 | D127: 75 | E127: 48835 | F127: 651.1333333 | G127: kr.
B128: Ventiler på Ø110 mm < Ledningsnet = Ø 250 mm | C128: 2013 | D128: 75 | E128: 50659 | F128: 675.4533333 | G128: kr.
B129: Tillæg for 2013 | F129: =SUM(F8:F128) -> 1002825.132 | G129: kr.
B130: Tillæg for 2010 - 2012 | F130: 3450590.827 | G130: kr.
B131: Samlet tillæg for gennemførte investeringer | F131: =F129+F130 -> 4453415.958 | G131: kr.

Sheet 6. Korrektion investeringer
A1: ='5. Gennemførte investeringer'!A1 -> Lolland Vand A/S
B4: Fane 6. Korrektion af tillæg for planlagte investeringer
B6: Korrektion af tillæg for planlagte investeringer vedr. 2013
B7: Tillæg for planlagte investeringer i 2013 i prisloft 2013 | C7: 756667 | D7: kr.
B8: Tillæg for planlagte investeringer i 2013 i prisloft 2014 | C8: 952333 | D8: kr.
B9: Selskabets faktiske afskrivninger på gennemførte investeringer i 2013 | C9: ='5. Gennemførte investeringer'!F129 -> 1002825.132 | D9: kr.
B10: Korrektion af tillæg for planlagte investeringer vedr. 2013 | C10: =C9-C7+C9-C8 -> 296650.2633 | D10: kr.

Sheet 7. Planlagte investeringer
A1: ='6. Korrektion investeringer'!A1 -> Lolland Vand A/S
B4: Fane 7. Planlagte investeringer
B6: Tillæg for planlagte investeringer i 2014 og 2015
B7: Beskrivelse af investeringen | C7: Årstal | D7: Std. levetid (år) | E7: Anskaffelses-pris (kr.) | F7: Afskrivning
B8: Stik på ledningsnet, Konstruktioner | C8: 2014 | D8: 75 | E8: 100000 | F8: =E8/D8 -> 1333.333333 | G8: kr.
B9: Ventiler på Ø 50mm < Ledningsnet = Ø110 mm | C9: 2014 | D9: 75 | E9: 440000 | F9: =E9/D9 -> 5866.666667 | G9: kr.
B10: Afregningsmålere, mekaniske | C10: 2014 | D10: 8 | E10: 2000000 | F10: =E10/D10 -> 250000 | G10: kr.
B11: Etageareal vandbehandlingsbygning | C11: 2014 | D11: 75 | E11: 250000 | F11: 3333.333333 | G11: kr.
B12: Ø 50mm < Ledningsnet = Ø110 mm | C12: 2014 | D12: 75 | E12: 875000 | F12: 11666.66667 | G12: kr.
B13: Ø 50mm < Ledningsnet = Ø110 mm | C13: 2014 | D13: 75 | E13: 100000 | F13: 1333.333333 | G13: kr.
B14: Ø 50mm < Ledningsnet = Ø110 mm | C14: 2014 | D14: 75 | E14: 230000 | F14: 3066.666667 | G14: kr.
B15: Ø 50mm < Ledningsnet = Ø110 mm | C15: 2014 | D15: 75 | E15: 3425000 | F15: 45666.66667 | G15: kr.
B16: Ø 50mm < Ledningsnet = Ø110 mm | C16: 2014 | D16: 75 | E16: 990000 | F16: 13200 | G16: kr.
B17: SRO-brønd/kvarterbrønd/sektionsbrønd, SRO | C17: 2014 | D17: 10 | E17: 75000 | F17: 7500 | G17: kr.
B18: Afregningsmålere, elektroniske = Ø 110mm (Qn 10) | C18: 2014 | D18: 10 | E18: 3000000 | F18: 300000 | G18: kr.
B19: Rentvandsbeholder insitu støbt | C19: 2014 | D19: 50 | E19: 300000 | F19: 6000 | G19: kr.
B20: Sikring, mindre avanceret (hegne, porte), SRO | C20: 2014 | D20: 10 | E20: 350000 | F20: 35000 | G20: kr.
B21: Ø 50mm < Ledningsnet = Ø110 mm | C21: 2014 | D21: 75 | E21: 2000000 | F21: 26666.66667 | G21: kr.
B22: Ø 50mm < Ledningsnet = Ø110 mm | C22: 2014 | D22: 75 | E22: 200000 | F22: 2666.666667 | G22: kr.
B23: Ø110 mm < Ledningsnet = Ø 250 mm | C23: 2014 | D23: 75 | E23: 1000000 | F23: 13333.33333 | G23: kr.
B24: Ø 50mm < Ledningsnet = Ø110 mm | C24: 2014 | D24: 75 | E24: 60000 | F24: 800 | G24: kr.
B25: Ø 50mm < Ledningsnet = Ø110 mm | C25: 2014 | D25: 75 | E25: 1350000 | F25: 18000 | G25: kr.
B26: SRO-brønd/kvarterbrønd/sektionsbrønd, Konstruktioner | C26: 2014 | D26: 50 | E26: 40000 | F26: 800 | G26: kr.
B27: SRO-brønd/kvarterbrønd/sektionsbrønd, Konstruktioner | C27: 2014 | D27: 50 | E27: 40000 | F27: 800 | G27: kr.
B28: SRO-brønd/kvarterbrønd/sektionsbrønd, Konstruktioner | C28: 2014 | D28: 50 | E28: 800000 | F28: 16000 | G28: kr.
B29: SRO-brønd/kvarterbrønd/sektionsbrønd, Mek./EL | C29: 2014 | D29: 15 | E29: 200000 | F29: 13333.33333 | G29: kr.
B30: SRO-brønd/kvarterbrønd/sektionsbrønd, SRO | C30: 2014 | D30: 10 | E30: 30000 | F30: 3000 | G30: kr.
B31: Boring (inkl. etablering, forerør, filter og prøvepumpning) | C31: 2014 | D31: 30 | E31: 900000 | F31: 30000 | G31: kr.
B32: Ø 50mm < Ledningsnet = Ø110 mm | C32: 2014 | D32: 75 | E32: 1370000 | F32: 18266.66667 | G32: kr.
B33: SRO-brønd/kvarterbrønd/sektionsbrønd, Konstruktioner | C33: 2014 | D33: 50 | E33: 300000 | F33: 6000 | G33: kr.
B34: Ø 50mm < Ledningsnet = Ø110 mm | C34: 2014 | D34: 75 | E34: 100000 | F34: 1333.333333 | G34: kr.
B35: SRO anlæg | C35: 2014 | D35: 10 | E35: 300000 | F35: 30000 | G35: kr.
B36: Nødstrømsanlæg på vandværk | C36: 2014 | D36: 25 | E36: 500000 | F36: 20000 | G36: kr.
B37: Etageareal vandbehandlingsbygning | C37: 2014 | D37: 75 | E37: 150000 | F37: 2000 | G37: kr.
B38: Rentvandsbeholder element | C38: 2014 | D38: 50 | E38: 600000 | F38: 12000 | G38: kr.
B39: Ø 50mm < Ledningsnet = Ø110 mm | C39: 2014 | D39: 75 | E39: 400000 | F39: 5333.333333 | G39: kr.
B40: Stik på ledningsnet, Konstruktioner | C40: 2014 | D40: 75 | E40: 600000 | F40: 8000 | G40: kr.
B41: Ø 50mm < Ledningsnet = Ø110 mm | C41: 2014 | D41: 75 | E41: 1000000 | F41: 13333.33333 | G41: kr.
B42: Ø 50mm < Ledningsnet = Ø110 mm | C42: 2015 | D42: 75 | E42: 5218000 | F42: 69573.33333 | G42: kr.
B43: SRO-brønd/kvarterbrønd/sektionsbrønd, Konstruktioner | C43: 2015 | D43: 50 | E43: 770000 | F43: 15400 | G43: kr.
B44: SRO-brønd/kvarterbrønd/sektionsbrønd, Mek./EL | C44: 2015 | D44: 15 | E44: 100000 | F44: 6666.666667 | G44: kr.
B45: SRO-brønd/kvarterbrønd/sektionsbrønd, SRO | C45: 2015 | D45: 10 | E45: 32000 | F45: 3200 | G45: kr.
B46: Afregningsmålere, mekaniske | C46: 2015 | D46: 8 | E46: 2000000 | F46: 250000 | G46: kr.
B47: SRO anlæg | C47: 2015 | D47: 10 | E47: 500000 | F47: 50000 | G47: kr.
B48: Ventiler på Ø 50mm < Ledningsnet = Ø110 mm | C48: 2015 | D48: 75 | E48: 1000000 | F48: 13333.33333 | G48: kr.
B49: Tillæg for 2014 | F49: =SUMIF(C8:C48,"2014",F8:F48) -> 925633.3333 | G49: kr.
B50: Tillæg for 2015 | F50: =SUMIF(C8:C48,"2015",F8:F48) -> 408173.3333 | G50: kr.
B51: Tillæg i alt | F51: =F49+F50 -> 1333806.667 | G51: kr.

Sheet 8. 1-1 omkostninger
A1: ='7. Planlagte investeringer'!A1 -> Lolland Vand A/S
B4: Fane 8. 1:1 omkostninger
B6: Tillæg for budgetterede 1:1 omkostninger i 2015
B7: Betaling til Forsyningssekretariatet | C7: 33000 | D7: kr.
B8: Ejendomsskatter | C8: 35000 | D8: kr.
B9: Tillæg i alt | C9: =SUM(C7:C8) -> 68000 | D9: kr.
B12: Tillæg for afgift for ledningsført vand i 2015
B13: Afgift for ledningsført vand (6,53 kr./m3) | C13: 10000000 | D13: kr.
B14: Tillæg i alt | C14: =SUM(C13:C13) -> 10000000 | D14: kr.
B17: Tillæg for budgetterede nødvendige udgifter til revisorerklæringer samt ordinært medlemskab af DANVA og FVD i 2015
B18: Betaling for ordinært medlemskab af DANVA/FVD | C18: 78000 | D18: kr.
B19: Betaling for revisorerklæringer | C19: 25000 | D19: kr.
B20: Tillæg i alt | C20: =SUM(C18:C19) -> 103000 | D20: kr.
B23: Korrektion af tillæg for faktiske 1:1 omkostninger (inkl. afgift for ledningsført vand, revisorerklæringer og ordinært medlemskab af DANVA/FVD) i 2013
B24: Selskabets faktiske 1:1 omkostninger mv. i 2013, jf. reguleringsregnskabet | C24: 10402851 | D24: kr.
B25: Tillæg for budgetterede 1:1 omkostninger mv. i prisloft 2013 | C25: 11086258 | D25: kr.
B26: Korrektion af tillæg for budgetterede 1:1 omkostninger mv. i 2013 | C26: =C24-C25 -> -683407 | D26: kr.

Sheet 9. Miljø- og servicemål
A1: ='8. 1-1 omkostninger'!A1 -> Lolland Vand A/S
B4: Fane 9. Driftsomkostninger til miljø- og servicemål
B6: Tillæg for budgetterede driftsomkostninger til miljø- og servicemål i 2015
B7: SMS-tjeneste | C7: 55000 | D7: kr.
B8: Tillæg i alt | C8: =SUM(C7:C7) -> 55000 | D8: kr.
B12: Korrektion af tillæg for faktiske driftsomkostninger til miljø- og servicemål i 2013
B13: Selskabets faktiske driftsomkostninger til miljø- og servicemål i 2013, jf. reguleringsregnskabet | C13: 119991 | D13: kr.
B14: Tillæg for budgetterede driftsomkostninger til miljø- og servicemål i prisloft 2013 | C14: 94000 | D14: kr.
B15: Korrektion af tillæg for budgetterede driftsomkostninger til miljø- og servicemål i 2013 | C15: =C13-C14 -> 25991 | D15: kr.

Sheet 10. Nettofinansielle poster
A1: ='2. Samlet prisloft'!A1 -> Lolland Vand A/S
B4: Fane 10. Nettofinansielle poster
B6: Tillæg for budgetterede nettofinansielle poster i 2015
B7: Budgetterede renteudgifter og gebyrer i 2015 | C7: 2950000 | D7: kr.
B8: Budgetterede renteindtægter i 2015 | C8: 55000 | D8: kr.
B9: Tillæg/fradrag i alt | C9: =C7-C8 -> 2895000 | D9: kr.
B13: Korrektion af tillæg for faktiske nettofinansielle poster i 2013
B14: Selskabets faktiske nettofinansielle poster i 2013, jf. reguleringsregnskabet | C14: 2766127 | D14: kr.
B15: Tillæg for budgetterede nettofinansielle poster i prisloft 2013 | C15: 2300000 | D15: kr.
B16: Korrektion af tillæg for budgetterede nettofinansielle poster i 2013 | C16: =C14-C15 -> 466127 | D16: kr.

Sheet 11. Over- eller underdækning
A1: ='1. Forside'!A1 -> Lolland Vand A/S
B4: Fane 11. Over- eller underdækning til og med 2010
B6: Tillæg/fradrag for over- eller underdækning til og med 2010
B7: Opgjort over- eller underdækning per 31. december 2010 | C7: 1437552 | D7: kr.
B8: Heraf beløb indregnet i prislofterne for 2011 - 2014 | C8: -377819.254 | D8: kr.
B9: Endnu ikke indregnet over- eller underdækning | C9: =C7-C8 -> 1815371.254 | D9: kr.
B10: Resterende indregningsperiode (fastsat i prisloftet for 2012) | C10: 6 | D10: år
B11: Tillæg/fradrag i alt | C11: =IF(C7=0,0,C9/C10) -> 302561.8757 | D11: kr.

Sheet 12. Kontrol med indtægtsrammen
A1: ='11. Over- eller underdækning'!A1 -> Lolland Vand A/S
B4: Fane 12. Korrektion for overholdelse af indtægtsrammen i prisloftet for 2013
B6: Samlet opgørelse vedrørende overholdelse af indtægtsrammen i prisloftet for 2013
B7: Indtægtsramme i prisloftet for 2013 | E7: 55465035.07 | F7: kr.
B8: Ikke anvendt likviditet vedrørende investeringer i 2013
B9: Tillæg for historiske investeringer | C9: 14170405.32 | D9: kr.
B10: Tillæg for gennemførte investeringer i 2011 | C10: 2221903 | D10: kr.
B11: Korrektion af tillæg for planlagte investeringer i 2011 | C11: 1520312 | D11: kr.
B12: Tillæg for planlagte investeringer i 2012 og 2013 | C12: 1773097 | D12: kr.
B13: Indtægter fra tilslutningsbidrag | C13: 41779 | D13: kr.
B14: Indtægter fra salg af anlægsaktiver | C14: 92379 | D14: kr.
B15: Erstatninger vedr. anlægsaktiver mv. | C15: 0 | D15: kr.
B16: Ekstraordinær effektiviseringsgevinst anvendt til investeringer | C16: 5408451 | D16: kr.
B17: Udgifter til investeringer | C17: -35096679 | D17: kr.
B18: Ikke anvendt likviditet vedr. investeringer i alt | C18: =SUM(C9:C17) -> -9868352.68 | D18: kr. | E18: =IF(C18<0,0,-C18) -> 0 | F18: kr.
B19: Ekstraordinære effektiviseringsgevinster anvendt til takstnedsættelse
B20: Ekstraordinær effektiviseringsgevinst anvendt til takstnedsættelse | C20: 0 | D20: kr. | E20: =-C20 -> 0 | F20: kr.
B21: Korrektion af ikke opkrævet tillæg fra 2011 i prisloft 2013
B22: Korrektion af ikke opkrævet tillæg fra 2011 i prisloft 2013 | C22: 0 | D22: kr. | E22: =-C22 -> 0 | F22: kr.
B23: Indtægter fra primære aktiviteter mv.
B24: Indtægter fra kubikmetertakster, faste takster, særbidrag, målergebyrer samt andre takster og gebyrer | C24: =38823924+10236898 -> 49060822 | D24: kr.
B25: Andre indtægter i prisloftåret, som selskabet har opnået i forbindelse med eller som følge af selskabets primære aktiviteter | C25: 449182 | D25: kr.
B26: Indtægter fra primære aktiviteter mv. i alt | C26: =SUM(C24:C25) -> 49510004 | D26: kr. | E26: =-C26 -> -49510004 | F26: kr.
B27: Tillæg/fradrag i prisloftet for 2015 i alt | E27: =E7+E18+E20+E22+E26 -> 5955031.073 | F27: kr.
B31: Oversigt over ekstraordinære effektiviseringsgevinster
C33: 2012 | E33: 2013 | G33: 2014 | I33: 2015 | K33: 2016
B34: Indhentet ekstraordinær effektiviseringsgevinst | C34: 5193144 | D34: kr. | E34: 5962433 | F34: kr. | H34: kr. | J34: kr. | L34: kr.
B35: Gevinst anvendt til investeringer | C35: 5193144 | D35: kr. | E35: 5408451 | F35: kr. | H35: kr. | J35: kr. | L35: kr.
B36: Gevinst anvendt til takstnedsættelse | C36: 0 | D36: kr. | E36: 0 | F36: kr. | H36: kr. | J36: kr. | L36: kr.
B37: Korrektion for effektiviseringsgevinst der ikke er anvendt inden 4 år | C37: 0 | D37: kr. | E37: 0 | F37: kr. | H37: kr. | J37: kr. | K37: =IF(C38>SUM(E35:I36),C38-SUM(E35:I36),0)*-1 -> 0 | L37: kr.
B38: Resterende gevinst | C38: =C34-C35-C36 -> 0 | D38: kr. | E38: =C38+E34-E35-E36 -> 553982 | F38: kr. | G38: =E38+G34-G35-G36 -> 553982 | H38: kr. | I38: =G38+I34-I35-I36 -> 553982 | J38: kr. | K38: =I38+K34-K35-K36+K37 -> 553982 | L38: kr.
